bitfinex/quotes_SOLUSD_20241125
["timestamp","ask_amount","ask_price","bid_price","bid_amount"]
[1732571332135,33.52140874,236.93,236.88,6.79132924]
[1732571332344,33.52140874,236.91,236.88,6.79132924]
[1732571332531,33.52140874,236.89,236.84,6.79132924]
[1732571332721,33.52140874,236.85,236.84,6.79132924]
[1732571333042,0.12549,236.85,236.84,6.79132924]
[1732571333622,33.52140874,236.89,236.88,6.79132924]
[1732571333822,33.52140874,236.89,236.83,6.79132924]
[1732571334028,33.52140874,236.86,236.85,6.79132924]
[1732571334230,33.52140874,236.86,236.8,6.79132924]
[1732571334415,33.52140874,236.82,236.8,6.79132924]
[1732571334744,0.12549,236.83,236.82,6.79132924]
[1732571335314,0.12549,236.83,236.8,6.79132924]
[1732571335638,0.12549,236.83,236.82,6.79132924]
[1732571336440,0.12549,236.87,236.85,6.79132924]
[1732571337049,0.12549,236.87,236.71,10.0]
[1732571337050,0.12549,236.85,236.81,6.79132924]
[1732571337235,33.52140874,236.82,236.79,6.79132924]
[1732571337428,33.52140874,236.8,236.77,6.79132924]
[1732571337743,0.12549,236.77,236.75,6.79132924]
[1732571337947,0.12549,236.77,236.73,6.79132924]
[1732571338526,1.39259,236.76,236.75,6.79132924]
[1732571338734,0.12549,236.76,236.75,6.79132924]
[1732571339442,33.52140874,236.82,236.8,6.79132924]
[1732571339655,33.52140874,236.82,236.75,33.52140874]
[1732571339656,0.12549,236.8,236.76,6.79132924]
[1732571339835,33.64689874,236.8,236.79,6.79132924]
[1732571340221,33.64689874,236.8,236.77,6.79132924]
[1732571340427,1.2669,236.79,236.77,6.79132924]
[1732571340623,0.12549,236.78,236.75,6.79132924]
[1732571340842,23.902374,236.75,236.69,6.79132924]
[1732571341051,0.12549,236.71,236.69,6.79132924]
[1732571341350,0.12549,236.75,236.74,6.79132924]
[1732571341536,23.902374,236.75,236.68,6.79132924]
[1732571341738,0.12549,236.72,236.71,6.79132924]
[1732571342047,57.29829274,236.75,236.69,6.79132924]
[1732571342231,0.12549,236.74,236.69,6.79132924]
[1732571342429,33.52140874,236.71,236.67,6.79132924]
[1732571342629,23.776884,236.72,236.67,6.79132924]
[1732571342630,33.52140874,236.68,236.67,6.79132924]
[1732571342856,20.0,236.65,236.61,6.79132924]
[1732571343019,33.52140874,236.62,236.61,6.79132924]
[1732571343221,0.12549,236.61,236.57,6.79132924]
[1732571343653,0.12549,236.61,236.6,6.79132924]
[1732571343953,0.12549,236.61,236.53,33.52140874]
[1732571343954,0.12549,236.61,236.56,6.79132924]
[1732571344253,0.12549,236.58,236.54,6.79132924]
[1732571344437,0.12549,236.58,236.57,6.79132924]
[1732571344635,0.12549,236.58,236.57,40.31273798]
[1732571344944,1.2677,236.64,236.63,6.79132924]
[1732571345155,23.902374,236.63,236.58,6.79132924]
[1732571345320,33.52140874,236.59,236.52,6.79132924]
[1732571345528,33.52140874,236.53,236.49,6.79132924]
[1732571345759,33.52140874,236.53,236.43,33.52140874]
[1732571345760,0.12549,236.46,236.44,6.79132924]
[1732571345950,0.12549,236.45,236.41,33.52140874]
[1732571346153,0.12549,236.45,236.43,6.79132924]
[1732571346459,0.12549,236.45,236.43,40.31273798]
[1732571346644,33.52140874,236.49,236.46,6.79132924]
[1732571346960,0.12549,236.46,236.44,6.79132924]
[1732571347461,33.52140874,236.49,236.44,6.79132924]
[1732571347642,20.12549,236.49,236.48,6.79132924]
[1732571347956,0.12549,236.48,236.46,6.79132924]
[1732571348166,33.52140874,236.47,236.46,6.79132924]
[1732571348354,33.64689874,236.47,236.46,6.79132924]
[1732571348536,0.12549,236.47,236.46,6.79132924]
[1732571348741,33.52140874,236.53,236.52,6.79132924]
[1732571348936,0.12549,236.52,236.46,6.79132924]
[1732571349137,33.52140874,236.49,236.48,6.79132924]
[1732571349335,33.64689874,236.49,236.48,6.79132924]
[1732571349541,0.12549,236.48,236.45,6.79132924]
[1732571349848,33.52140874,236.47,236.45,6.79132924]
[1732571350048,0.12549,236.46,236.45,6.79132924]
[1732571350554,20.0,236.53,236.49,6.79132924]
[1732571350732,33.52140874,236.51,236.49,6.79132924]
[1732571350933,33.52140874,236.51,236.46,6.79132924]
[1732571351159,33.52140874,236.51,236.5,6.79132924]
[1732571351358,21.2683,236.53,236.4,10.0]
[1732571351359,33.52140874,236.53,236.52,6.79132924]
[1732571351664,33.52140874,236.55,236.54,6.79132924]
[1732571351956,33.52140874,236.55,236.36,7.00003741]
[1732571351957,10.0,236.53,236.44,6.79132924]
[1732571352255,10.0,236.53,236.38,33.52140874]
[1732571352256,33.52140874,236.45,236.37,6.79132924]
[1732571352450,33.52140874,236.4,236.36,7.00003741]
[1732571352753,34.79040874,236.4,236.38,6.79132924]
[1732571352962,30.12549,236.39,236.38,6.79132924]
[1732571353457,30.0,236.39,236.38,6.79132924]
[1732571353838,26.70748484,236.39,236.38,6.79132924]
[1732571354461,0.12549,236.38,236.36,13.79136665]
[1732571354675,83.64689874,236.37,236.36,7.00003741]
[1732571354882,81.45993972,236.37,236.36,7.00003741]
[1732571355079,78.0052278,236.37,236.36,7.00003741]
[1732571355251,88.69288274,236.37,236.36,7.00003741]
[1732571355571,61.34339943,236.37,236.36,7.00003741]
[1732571356765,57.89939988,236.37,236.36,7.00003741]
[1732571356958,54.4679419,236.37,236.36,7.00003741]
[1732571357472,78.2448259,236.37,236.36,7.00003741]
[1732571357683,20.0,236.34,236.31,6.79132924]
[1732571357983,30.0,236.32,236.31,6.79132924]
[1732571358196,63.52140874,236.32,236.29,6.79132924]
[1732571358479,33.52140874,236.3,236.29,6.79132924]
[1732571358687,63.52140874,236.32,236.31,6.79132924]
[1732571358979,30.0,236.32,236.31,6.79132924]
[1732571361564,30.0,236.32,236.31,6.79132924]
[1732571361764,33.52140874,236.38,236.31,6.79132924]
[1732571361981,33.52140874,236.38,236.37,6.79132924]
[1732571362177,31.2691,236.38,236.37,6.79132924]
[1732571362349,30.0,236.38,236.37,6.79132924]
[1732571363486,1.2691,236.37,236.34,6.79132924]
[1732571363658,33.52140874,236.36,236.34,6.79132924]
[1732571364166,33.52140874,236.36,236.32,6.79132924]
[1732571364381,1.2691,236.37,236.3,6.79132924]
[1732571364382,53.52140874,236.33,236.3,6.79132924]
[1732571364558,33.52140874,236.3,236.26,6.79132924]
[1732571364763,33.52140874,236.28,236.26,6.79132924]
[1732571364958,20.0,236.25,236.24,6.79132924]
[1732571365158,33.52140874,236.24,236.22,6.79132924]
[1732571365759,33.52140874,236.24,236.2,7.29170494]
[1732571365983,33.52140874,236.22,236.2,7.29170494]
[1732571366376,23.776884,236.21,236.2,0.5003757]
[1732571366579,33.52140874,236.22,236.2,0.5003757]
[1732571367177,25.046884,236.21,236.2,0.5003757]
[1732571368176,1.27,236.21,236.2,0.5003757]
[1732571368382,20.0,236.24,236.23,6.79132924]
[1732571368571,53.52140874,236.24,236.2,0.5003757]
[1732571368778,33.52140874,236.23,236.22,6.79132924]
[1732571369175,20.0,236.21,236.2,0.5003757]
[1732571369374,33.52140874,236.21,236.2,0.5003757]
[1732571370076,33.52140874,236.21,236.2,7.29170494]
[1732571370677,33.52140874,236.25,236.24,6.79132924]
[1732571370866,1.2698,236.24,236.21,6.79132924]
[1732571371070,33.52140874,236.22,236.21,6.79132924]
[1732571372090,34.79140874,236.22,236.21,6.79132924]
[1732571372292,34.79140874,236.22,236.2,7.29170494]
[1732571372466,34.79140874,236.22,236.2,0.5003757]
[1732571372867,23.776884,236.21,236.2,0.5003757]
[1732571373171,67.29829274,236.21,236.2,0.5003757]
[1732571373373,33.776884,236.21,236.2,0.5003757]
[1732571374178,23.776884,236.21,236.2,0.5003757]
[1732571374372,33.776884,236.21,236.2,0.5003757]
[1732571374576,23.776884,236.21,236.2,0.5003757]
[1732571375176,34.79140874,236.22,236.2,7.29170494]
[1732571375494,34.79140874,236.22,236.2,0.5003757]
[1732571376299,20.6870738,236.21,236.2,0.5003757]
[1732571376499,54.4639578,236.21,236.2,0.5003757]
[1732571377490,44.4639578,236.21,236.2,0.5003757]
[1732571377782,20.6870738,236.21,236.2,0.5003757]
[1732571378685,30.6870738,236.21,236.2,0.5003757]
[1732571378882,20.0,236.18,236.13,6.79132924]
[1732571379080,4.4453,236.2,236.13,6.79132924]
[1732571379081,20.6870738,236.14,236.13,6.79132924]
[1732571379292,21.9574738,236.14,236.13,6.79132924]
[1732571380397,21.9574738,236.14,236.11,6.79132924]
[1732571380705,40.6870738,236.12,236.09,6.79132924]
[1732571380915,20.6870738,236.1,236.09,6.79132924]
[1732571381282,21.9576738,236.1,236.07,6.79132924]
[1732571381494,20.6870738,236.08,236.07,6.79132924]
[1732571381907,21.9576738,236.1,236.09,6.79132924]
[1732571382213,20.0,236.12,236.11,6.79132924]
[1732571382214,41.9575738,236.12,236.11,6.79132924]
[1732571382903,21.9575738,236.12,236.11,6.79132924]
[1732571383293,20.6870738,236.14,236.13,6.79132924]
[1732571384004,23.776884,236.12,236.1,6.79132924]
[1732571384206,20.6870738,236.11,236.1,6.79132924]
[1732571384406,20.6870738,236.11,236.05,6.79132924]
[1732571384611,23.776884,236.12,236.1,6.79132924]
[1732571385110,20.6870738,236.11,236.1,6.79132924]
[1732571385288,21.9575738,236.11,236.1,6.79132924]
[1732571385908,1.2705,236.11,236.1,6.79132924]
[1732571386694,21.9575738,236.11,236.1,6.79132924]
[1732571388995,21.9575738,236.11,236.1,11.79132924]
[1732571390317,21.9575738,236.11,236.1,5.0]
[1732571390620,3.1746,236.25,236.23,6.79132924]
[1732571390792,20.6870738,236.26,236.23,6.79132924]
[1732571390992,20.6870738,236.24,236.2,6.79132924]
[1732571391223,20.6870738,236.2,236.14,6.79132924]
[1732571391513,20.6870738,236.17,236.14,6.79132924]
[1732571391827,21.9573738,236.17,236.14,6.79132924]
[1732571391997,20.6870738,236.15,236.14,6.79132924]
[1732571392193,21.9573738,236.17,236.16,6.79132924]
[1732571394090,20.6870738,236.17,236.16,6.79132924]
[1732571394813,1.2702,236.18,236.16,6.79132924]
[1732571394994,20.6870738,236.23,236.2,6.79132924]
[1732571395194,20.6870738,236.23,236.22,6.79132924]
[1732571395521,20.6870738,236.25,236.24,6.79132924]
[1732571395892,21.9568738,236.25,236.24,6.79132924]
[1732571396092,45.7337578,236.25,236.24,6.79132924]
[1732571397992,21.9568738,236.25,236.24,6.79132924]
[1732571398192,9.29263458,236.33,236.13,10.0]
[1732571398193,20.6870738,236.27,236.26,6.79132924]
[1732571399407,25.046584,236.27,236.26,6.79132924]
[1732571400494,23.776884,236.27,236.26,6.79132924]
[1732571400721,21.9566738,236.29,236.28,6.79132924]
[1732571401129,9.29263458,236.33,236.32,6.79132924]
[1732571401702,31.24910838,236.33,236.3,6.79132924]
[1732571401901,20.6870738,236.31,236.28,6.79132924]
[1732571402116,20.6870738,236.29,236.28,6.79132924]
[1732571402315,44.4639578,236.29,236.28,6.79132924]
[1732571402505,21.9565738,236.31,236.28,6.79132924]
[1732571402836,9.29263458,236.33,236.32,6.79132924]
[1732571403036,9.29263458,236.33,236.32,27.47840304]
[1732571403204,9.29263458,236.33,236.32,37.47840304]
[1732571403609,9.29263458,236.33,236.32,27.47840304]
[1732571403830,29.97970838,236.33,236.32,6.79132924]
[1732571404005,29.97970838,236.33,236.3,6.79132924]
[1732571404220,29.97970838,236.33,236.21,20.6870738]
[1732571404221,9.29263458,236.33,236.31,6.79132924]
[1732571404725,31.24910838,236.33,236.31,6.79132924]
[1732571405049,9.29263458,236.33,236.31,11.02302924]
[1732571405205,9.29263458,236.33,236.32,20.6870738]
[1732571405405,9.29263458,236.33,236.32,30.6870738]
[1732571406231,20.6870738,236.45,236.32,30.6870738]
[1732571406232,20.6870738,236.45,236.44,6.79132924]
[1732571406722,20.6870738,236.45,236.38,6.79132924]
[1732571407033,4.4401,236.48,236.43,6.79132924]
[1732571407211,7.64877076,236.48,236.37,6.79132924]
[1732571407408,10.0,236.47,236.37,6.79132924]
[1732571407604,10.0,236.45,236.37,6.79132924]
[1732571407805,23.776884,236.46,236.43,6.79132924]
[1732571408113,44.4639578,236.44,236.42,6.79132924]
[1732571408302,23.776884,236.42,236.4,6.79132924]
[1732571408510,23.776884,236.41,236.4,6.79132924]
[1732571408730,20.6870738,236.41,236.4,6.79132924]
[1732571409026,20.6870738,236.47,236.46,6.79132924]
[1732571409345,10.27212826,236.52,236.5,6.79132924]
[1732571409629,20.6870738,236.51,236.5,6.79132924]
[1732571409831,20.6870738,236.51,236.48,6.79132924]
[1732571410034,11.54052826,236.52,236.5,6.79132924]
[1732571410242,10.27212826,236.52,236.5,6.79132924]
[1732571410636,70.0,236.72,236.36,23.2584]
[1732571410637,1.2674,236.69,236.62,6.79132924]
[1732571410812,1.2674,236.69,236.64,6.79132924]
[1732571411131,20.6870738,236.65,236.64,6.79132924]
[1732571411343,20.6870738,236.67,236.66,6.79132924]
[1732571411629,20.6870738,236.69,236.68,6.79132924]
[1732571412917,20.6870738,236.69,236.65,6.79132924]
[1732571412918,20.0,236.66,236.65,6.79132924]
[1732571413243,20.6870738,236.67,236.66,6.79132924]
[1732571413439,10.0,236.65,236.57,6.79132924]
[1732571413746,10.0,236.62,236.52,6.79132924]
[1732571413909,10.0,236.62,236.44,45.6808738]
[1732571413910,35.3828,236.67,236.59,6.79132924]
[1732571414112,35.3828,236.67,236.49,20.6870738]
[1732571414113,4.4359,236.7,236.63,6.79132924]
[1732571414308,1.2674,236.7,236.68,6.79132924]
[1732571414535,1.2675,236.68,236.66,6.79132924]
[1732571414739,20.6870738,236.67,236.66,6.79132924]
[1732571415234,20.6870738,236.69,236.68,6.79132924]
[1732571415909,20.6870738,236.69,236.66,6.79132924]
[1732571416215,10.25642769,236.74,236.73,6.79132924]
[1732571416216,11.52362769,236.74,236.73,6.79132924]
[1732571417044,35.30051169,236.74,236.73,6.79132924]
[1732571417835,32.21070149,236.74,236.73,6.79132924]
[1732571418236,30.94350149,236.74,236.73,6.79132924]
[1732571418611,1.2672,236.73,236.71,6.79132924]
[1732571418829,20.6870738,236.72,236.71,6.79132924]
[1732571419709,30.94350149,236.74,236.73,6.79132924]
[1732571419905,10.25642769,236.74,236.73,6.79132924]
[1732571420539,30.94350149,236.74,236.73,6.79132924]
[1732571420835,5.25642769,236.74,236.73,6.79132924]
[1732571421049,0.5003757,236.81,236.73,27.47840304]
[1732571421337,0.5003757,236.81,236.8,6.79132924]
[1732571421708,1.7671757,236.81,236.8,6.79132924]
[1732571421908,22.4542495,236.81,236.78,6.79132924]
[1732571422113,20.6870738,236.79,236.76,6.79132924]
[1732571422317,44.4639578,236.77,236.76,6.29132924]
[1732571422550,20.0,236.75,236.74,6.29132924]
[1732571422750,43.776884,236.75,236.74,6.29132924]
[1732571422927,64.4639578,236.75,236.74,6.29132924]
[1732571423129,23.776884,236.74,236.72,6.29132924]
[1732571423328,20.6870738,236.73,236.72,6.29132924]
[1732571423528,44.4639578,236.73,236.72,6.29132924]
[1732571423946,23.776884,236.72,236.71,6.29132924]
[1732571424258,43.776884,236.69,236.68,6.29132924]
[1732571424561,20.0,236.66,236.64,6.29132924]
[1732571424718,44.4639578,236.65,236.64,6.29132924]
[1732571424924,23.776884,236.61,236.6,6.29132924]
[1732571425156,44.4639578,236.61,236.6,6.29132924]
[1732571427131,21.9547738,236.65,236.6,6.29132924]
[1732571427327,3.1683,236.72,236.66,6.29132924]
[1732571427328,44.4639578,236.67,236.66,6.29132924]
[1732571427833,20.6870738,236.69,236.68,6.29132924]
[1732571428029,74.4639578,236.69,236.68,6.29132924]
[1732571428245,50.6870738,236.69,236.68,6.29132924]
[1732571428449,21.9543738,236.71,236.68,6.29132924]
[1732571428654,1.2673,236.71,236.68,6.29132924]
[1732571428859,20.6870738,236.69,236.64,6.29132924]
[1732571429031,20.6870738,236.65,236.6,6.29132924]
[1732571429230,30.0,236.68,236.64,6.29132924]
[1732571429462,30.0,236.68,236.61,6.29132924]
[1732571429463,23.776884,236.67,236.61,6.29132924]
[1732571429757,23.776884,236.61,236.59,6.29132924]
[1732571430168,20.6870738,236.62,236.61,6.29132924]
[1732571430868,44.4639578,236.64,236.63,6.29132924]
[1732571432150,45.7316578,236.64,236.63,6.29132924]
[1732571432761,20.6870738,236.64,236.63,6.29132924]
[1732571432970,53.776884,236.68,236.67,6.29132924]
[1732571433147,30.0,236.68,236.67,6.29132924]
[1732571433736,21.9545738,236.69,236.67,6.29132924]
[1732571434137,20.6870738,236.71,236.7,6.29132924]
[1732571434365,20.6870738,236.75,236.74,6.29132924]
[1732571434569,50.6870738,236.75,236.74,6.29132924]
[1732571435269,50.6870738,236.75,236.7,6.29132924]
[1732571435473,30.0,236.75,236.71,6.29132924]
[1732571435658,30.0,236.75,236.74,6.29132924]
[1732571435842,74.4639578,236.75,236.74,6.29132924]
[1732571436236,75.7310578,236.75,236.74,6.29132924]
[1732571436646,0.5003757,236.81,236.76,6.29132924]
[1732571436837,50.6870738,236.77,236.76,6.29132924]
[1732571438051,44.4639578,236.77,236.76,6.29132924]
[1732571438237,44.4639578,236.77,236.63,10.0]
[1732571438238,21.2672,236.73,236.72,6.29132924]
[1732571438440,65.7311578,236.73,236.72,6.29132924]
[1732571439649,44.4639578,236.73,236.72,6.29132924]
[1732571439948,20.6870738,236.75,236.74,6.29132924]
[1732571440460,20.6870738,236.79,236.78,6.29132924]
[1732571440659,50.6870738,236.79,236.78,6.29132924]
[1732571440909,21.1874495,236.81,236.8,6.29132924]
[1732571441256,22.4542495,236.81,236.8,6.29132924]
[1732571441872,22.4542495,236.81,236.78,6.29132924]
[1732571442172,20.6870738,236.79,236.78,6.29132924]
[1732571442467,45.7308578,236.79,236.78,6.29132924]
[1732571442769,43.776884,236.77,236.76,6.29132924]
[1732571442975,64.4639578,236.77,236.76,6.29132924]
[1732571443657,20.6870738,236.77,236.76,6.29132924]
[1732571444481,20.6870738,236.79,236.78,6.29132924]
[1732571444648,50.6870738,236.79,236.78,6.29132924]
[1732571444969,22.4542495,236.81,236.8,6.29132924]
[1732571445686,52.4542495,236.81,236.8,6.29132924]
[1732571446170,76.2311335,236.81,236.8,6.29132924]
[1732571449185,20.0,236.79,236.78,6.29132924]
[1732571449482,64.4639578,236.79,236.78,6.29132924]
[1732571450046,20.6870738,236.79,236.78,6.29132924]
[1732571450659,51.1874495,236.81,236.8,6.29132924]
[1732571451261,52.4542495,236.81,236.8,6.29132924]
[1732571451873,46.2311335,236.81,236.8,6.29132924]
[1732571453883,21.1874495,236.81,236.8,6.29132924]
[1732571454090,0.5003757,236.81,236.8,6.29132924]
[1732571454283,21.1874495,236.81,236.8,6.29132924]
[1732571456092,22.4542495,236.81,236.8,6.29132924]
[1732571456383,21.1874495,236.81,236.8,6.29132924]
[1732571458776,46.2311335,236.81,236.8,6.29132924]
[1732571460490,38.4060656,236.81,236.8,6.29132924]
[1732571461270,23.776884,236.8,236.78,6.29132924]
[1732571461586,36.6388899,236.79,236.78,6.29132924]
[1732571461962,43.776884,236.75,236.72,4.15493492]
[1732571462190,20.0,236.7,236.67,4.15493492]
[1732571462491,43.776884,236.66,236.65,4.15493492]
[1732571462671,23.776884,236.61,236.51,10.0]
[1732571462994,12.8620059,236.58,236.51,12.8620059]
[1732571463297,12.8620059,236.56,236.49,37.3961059]
[1732571463461,12.8620059,236.56,236.52,10.0]
[1732571463664,12.8620059,236.56,236.49,37.3961059]
[1732571464072,12.8620059,236.52,236.46,9.5427]
[1732571464273,20.62379678,236.51,236.43,24.85319678]
[1732571464489,20.62379678,236.47,236.39,20.62379678]
[1732571464693,20.62379678,236.43,236.35,49.53169678]
[1732571464892,20.62379678,236.45,236.37,20.62379678]
[1732571465098,20.62379678,236.45,236.36,10.0]
[1732571465387,20.62379678,236.47,236.39,20.62379678]
[1732571465588,20.62379678,236.49,236.41,30.62379678]
[1732571465901,20.62379678,236.55,236.47,20.62379678]
[1732571466099,20.62379678,236.57,236.49,20.62379678]
[1732571466283,20.62379678,236.59,236.51,20.62379678]
[1732571466602,20.62379678,236.57,236.49,20.62379678]
[1732571466768,1.2678,236.62,236.43,10.5735]
[1732571466769,20.62379678,236.53,236.45,20.62379678]
[1732571466975,20.62379678,236.51,236.43,30.62379678]
[1732571467189,20.62379678,236.51,236.43,20.62379678]
[1732571467717,20.62379678,236.49,236.45,10.0]
[1732571467907,20.62379678,236.51,236.45,10.0]
[1732571468215,20.62379678,236.55,236.47,10.0]
[1732571468630,20.62379678,236.57,236.49,30.62379678]
[1732571468913,20.62379678,236.57,236.49,10.0]
[1732571469122,20.62379678,236.57,236.47,30.62379678]
[1732571469290,20.62379678,236.55,236.49,10.0]
[1732571469685,20.62379678,236.55,236.47,30.62379678]
[1732571469885,20.62379678,236.53,236.46,4.229]
[1732571470499,20.62379678,236.53,236.45,20.62379678]
[1732571470801,20.62379678,236.53,236.47,10.0]
[1732571471144,20.62379678,236.64,236.47,10.0]
[1732571471145,20.62379678,236.57,236.49,20.62379678]
[1732571471418,20.62379678,236.57,236.5,10.0]
[1732571471800,20.62379678,236.55,236.47,20.62379678]
[1732571472001,20.62379678,236.55,236.48,10.0]
[1732571472201,20.62379678,236.55,236.47,20.62379678]
[1732571472514,20.62379678,236.55,236.48,14.2285]
[1732571472690,20.62379678,236.53,236.45,20.62379678]
[1732571472893,20.62379678,236.55,236.48,10.0]
[1732571473307,23.79309678,236.64,236.49,20.62379678]
[1732571473308,20.62379678,236.57,236.49,20.62379678]
[1732571473487,20.62379678,236.63,236.56,10.0]
[1732571473815,20.62379678,236.71,236.64,10.0]
[1732571474116,20.62379678,236.73,236.65,20.62379678]
[1732571474418,20.62379678,236.67,236.59,20.62379678]
[1732571474600,20.62379678,236.65,236.58,4.2268]
[1732571474810,20.62379678,236.65,236.6,10.0]
[1732571475204,20.62379678,236.67,236.59,20.62379678]
[1732571475421,20.62379678,236.67,236.58,14.2268]
[1732571475422,20.62379678,236.65,236.57,20.62379678]
[1732571475628,20.62379678,236.63,236.55,24.85099678]
[1732571475825,20.62379678,236.63,236.55,20.62379678]
[1732571475997,20.62379678,236.63,236.55,24.85109678]
[1732571476403,20.62379678,236.63,236.55,34.85109678]
[1732571476628,20.62379678,236.67,236.59,20.62379678]
[1732571477041,20.62379678,236.69,236.61,30.62379678]
[1732571477412,20.62379678,236.73,236.65,20.62379678]
[1732571477611,20.62379678,236.75,236.67,20.62379678]
[1732571477921,0.5003757,236.81,236.64,10.0]
[1732571477922,0.5003757,236.81,236.73,20.62379678]
[1732571478128,20.62379678,236.79,236.71,20.62379678]
[1732571478326,20.62379678,236.77,236.68,43.4602]
[1732571478514,20.12379678,236.79,236.72,10.0]
[1732571478716,20.12379678,236.79,236.72,4.2243]
[1732571479030,0.5003757,236.81,236.77,20.62379678]
[1732571479407,21.12417248,236.81,236.73,20.62379678]
[1732571479616,21.12417248,236.81,236.72,14.2243]
[1732571479617,0.5003757,236.81,236.75,20.62379678]
[1732571480518,0.5003757,236.81,236.75,30.62379678]
[1732571480744,0.5003757,236.81,236.68,54.0228]
[1732571481036,21.12417248,236.81,236.73,20.62379678]
[1732571481842,40.62379678,236.77,236.69,20.62379678]
[1732571482142,20.62379678,236.77,236.69,20.62379678]
[1732571482509,1.7671757,236.81,236.71,20.62379678]
[1732571482510,20.62379678,236.79,236.71,20.62379678]
[1732571482738,20.62379678,236.77,236.69,20.62379678]
[1732571482942,20.62379678,236.79,236.71,20.62379678]
[1732571483513,0.5003757,236.81,236.75,20.62379678]
[1732571483715,20.62379678,236.77,236.64,4.2256]
[1732571483917,20.62379678,236.7,236.62,20.62379678]
[1732571484209,20.62379678,236.64,236.54,10.0]
[1732571484516,23.776884,236.72,236.5,5.0]
[1732571484709,20.0,236.67,236.52,4.2279]
[1732571485224,20.0,236.63,236.52,14.2279]
[1732571485423,40.62379678,236.63,236.55,20.62379678]
[1732571485633,20.62379678,236.65,236.57,20.62379678]
[1732571485828,23.776884,236.68,236.61,20.62379678]
[1732571486027,20.0,236.66,236.57,20.62379678]
[1732571486219,20.62379678,236.67,236.59,20.62379678]
[1732571486543,20.62379678,236.71,236.63,20.62379678]
[1732571486838,20.62379678,236.71,236.61,20.62379678]
[1732571487044,20.62379678,236.69,236.61,20.62379678]
[1732571487339,20.62379678,236.71,236.63,20.62379678]
[1732571488244,20.62379678,236.71,236.58,14.794]
[1732571488245,20.62379678,236.67,236.59,20.62379678]
[1732571488556,40.62379678,236.69,236.61,20.62379678]
[1732571488715,20.62379678,236.73,236.63,20.62379678]
[1732571489340,20.62379678,236.73,236.65,20.62379678]
[1732571489542,10.75262963,236.81,236.65,20.62379678]
[1732571489543,20.62379678,236.79,236.71,20.62379678]
[1732571489746,20.31992963,236.81,236.64,20.62379678]
[1732571489747,21.12417248,236.81,236.73,20.62379678]
[1732571490222,0.5003757,236.81,236.8,20.62379678]
[1732571490542,0.5003757,236.81,236.78,20.62379678]
[1732571490714,0.5003757,236.81,236.78,24.84709678]
[1732571491331,0.5003757,236.81,236.73,20.62379678]
[1732571491845,0.5003757,236.81,236.77,30.62379678]
[1732571492138,0.5003757,236.81,236.79,20.62379678]
[1732571492621,0.5003757,236.81,236.8,14.2229]
[1732571492825,0.5003757,236.81,236.8,4.2229]
[1732571493040,0.5003757,236.81,236.8,14.2229]
[1732571493752,0.5003757,236.81,236.8,24.2229]
[1732571494245,0.5003757,236.81,236.8,14.2229]
[1732571494625,0.5003757,236.81,236.8,4.2229]
[1732571495134,0.5003757,236.81,236.75,30.62379678]
[1732571495631,21.12417248,236.81,236.75,10.0]
[1732571496042,21.12417248,236.81,236.74,4.224]
[1732571496222,0.5003757,236.81,236.75,30.62379678]
[1732571496415,21.12417248,236.81,236.74,4.224]
[1732571496616,0.5003757,236.81,236.75,20.62379678]
[1732571496818,0.5003757,236.81,236.75,24.84759678]
[1732571497137,0.5003757,236.81,236.79,20.62379678]
[1732571497532,0.5003757,236.81,236.8,20.0]
[1732571498253,0.5003757,236.81,236.8,20.12549]
[1732571498460,0.5003757,236.81,236.8,43.902374]
[1732571499250,0.5003757,236.81,236.8,48.125274]
[1732571499445,20.62379678,236.93,236.87,134.1996243]
[1732571499622,20.62379678,236.93,236.85,20.62379678]
[1732571499946,20.62379678,236.93,236.85,30.62379678]
[1732571500144,20.62379678,236.93,236.8,14.2229]
[1732571500145,20.62379678,236.91,236.83,20.62379678]
[1732571500522,20.62379678,237.0,236.8,24.7803]
[1732571500523,20.62379678,236.95,236.87,20.62379678]
[1732571500727,1.2659,236.97,236.81,20.62379678]
[1732571500728,20.62379678,236.91,236.81,20.62379678]
[1732571501244,20.62379678,236.91,236.8,10.0]
[1732571501245,20.62379678,236.91,236.83,20.62379678]
[1732571501454,20.62379678,236.87,236.8,4.2228]
[1732571502336,20.62379678,236.91,236.83,20.62379678]
[1732571503451,20.62379678,236.89,236.81,20.62379678]
[1732571503629,20.62379678,236.87,236.8,4.2228]
[1732571503824,20.62379678,236.87,236.79,20.62379678]
[1732571504033,20.62379678,236.85,236.77,20.62379678]
[1732571504326,20.62379678,236.87,236.79,20.62379678]
[1732571504548,21.89019678,236.89,236.81,20.62379678]
[1732571504753,20.62379678,236.89,236.81,20.62379678]
[1732571504938,20.62379678,236.93,236.85,20.62379678]
[1732571505545,20.62379678,236.95,236.87,20.62379678]
[1732571506164,20.62379678,236.97,236.89,20.62379678]
[1732571506468,31.33109678,237.01,236.93,20.62379678]